bitfinex-derivatives/quotes_SOLF0:USTF0_20251201
["timestamp","ask_amount","ask_price","bid_price","bid_amount"]
[1764604675258,0.05613712,125.15,125.13,0.05508055]
[1764604675464,3.43613712,125.15,125.13,0.05508055]
[1764604676565,0.05613712,125.15,125.13,3.15508055]
[1764604680165,0.05613712,125.15,125.13,10.34828055]
[1764604680670,3.29,125.22,125.16,3.26]
[1764604681171,70.92,125.23,125.2,3.26]
[1764604681773,70.97147175,125.23,125.2,3.31198212]
[1764604682071,70.97147175,125.23,125.22,3.26]
[1764604682072,0.05147175,125.23,125.22,3.26]
[1764604682869,70.92,125.3,125.23,3.26]
[1764604683068,70.92,125.3,125.24,3.26]
[1764604683672,70.92,125.3,125.25,3.26]
[1764604683975,70.92,125.3,125.26,3.31687996]
[1764604683976,0.06106497,125.29,125.26,3.31687996]
[1764604684571,3.35106497,125.29,125.26,0.05687996]
[1764604685874,3.29,125.28,125.26,0.05687996]
[1764604687073,0.06106497,125.29,125.27,3.26]
[1764604687577,0.06106497,125.29,125.27,7.1854]
[1764604687874,3.35106497,125.29,125.26,0.05687996]
[1764604689982,0.06106497,125.29,125.26,7.24267996]
[1764604690278,3.35106497,125.29,125.26,0.05687996]
[1764604690884,3.35106497,125.29,125.17,335.596]
[1764604690885,3.29,125.27,125.18,111.8556]
[1764604691092,3.29,125.25,125.17,3.26]
[1764604691679,111.7686,125.29,125.17,3.26]
[1764604691680,74.13,125.32,125.25,115.0527]
[1764604691886,0.05724925,125.3,125.27,0.05423138]
[1764604692073,3.34724925,125.3,125.27,0.05423138]
[1764604694481,3.29,125.29,125.27,0.05423138]
[1764604694782,3.34724925,125.3,125.27,0.05423138]
[1764604695078,3.29,125.29,125.27,0.05423138]
[1764604695986,0.05724925,125.3,125.27,0.05423138]
[1764604697081,0.05724925,125.3,125.27,3.31423138]
[1764604697686,3.29,125.39,125.3,3.26]
[1764604698182,3.29,125.37,125.3,3.26]
[1764604698575,0.05359521,125.35,125.32,0.05410544]
[1764604699781,3.34359521,125.35,125.32,0.05410544]
[1764604700084,3.29,125.34,125.32,0.05410544]
[1764604702284,10.4721,125.34,125.32,0.00410544]
[1764604702477,3.29,125.33,125.32,0.00410544]
[1764604702786,3.29,125.32,125.26,7.1858]
[1764604702978,3.29,125.3,125.23,3.26]
[1764604703181,74.05,125.3,125.23,3.26]
[1764604703890,3.34439048,125.28,125.25,0.06137173]
[1764604708285,0.05439048,125.28,125.26,10.416]
[1764604708485,0.05439048,125.28,125.26,7.186]
[1764604708693,3.38439048,125.28,125.25,0.06137173]
[1764604709084,0.05439048,125.28,125.25,3.38137173]
[1764604709387,3.25439048,125.28,125.25,0.06137173]
[1764604710191,0.05439048,125.28,125.25,0.06137173]
[1764604710690,3.25439048,125.28,125.25,0.06137173]
[1764604711686,10.43959048,125.28,125.25,0.06137173]
[1764604711990,3.25439048,125.28,125.25,0.06137173]
[1764604712186,10.43949048,125.28,125.25,0.06137173]
[1764604712388,3.2,125.26,125.2,7.1892]
[1764604712584,3.2,125.26,125.19,3.32]
[1764604713081,3.2,125.24,125.19,3.32]
[1764604713277,73.94,125.27,125.21,115.1478]
[1764604713477,0.0513964,125.25,125.24,7.1872]
[1764604713690,0.0513964,125.25,125.24,10.5072]
[1764604715188,3.2,125.3,125.27,7.1852]
[1764604715792,3.2,125.3,125.25,3.32]
[1764604716290,0.05524727,125.29,125.26,0.05285541]
[1764604716589,3.25524727,125.29,125.26,0.05285541]
[1764604718500,115.01934727,125.29,125.26,0.05285541]
[1764604718795,3.2,125.28,125.26,0.05285541]
[1764604718995,0.05524727,125.29,125.26,3.37285541]
[1764604719186,0.05524727,125.29,125.26,0.05285541]
[1764604719187,3.25524727,125.29,125.26,0.05285541]
[1764604719595,10.43974727,125.29,125.26,0.05285541]
[1764604719897,3.2,125.28,125.26,0.05285541]
[1764604720997,3.2,125.28,125.26,7.23865541]
[1764604721197,0.05524727,125.29,125.26,7.23865541]
[1764604721495,3.25524727,125.29,125.26,7.23865541]
[1764604721687,3.25524727,125.29,125.26,0.05285541]
[1764604722394,3.2,125.27,125.22,7.38896084]
[1764604722592,3.2,125.27,125.21,7.38896084]
[1764604723098,3.2,125.27,125.22,7.38896084]
[1764604723393,3.2,125.25,125.23,0.05058671]
[1764604723589,0.05376991,125.26,125.23,3.37058671]
[1764604723990,0.05376991,125.26,125.23,10.75954755]
[1764604724196,0.05376991,125.26,125.24,17.89636084]
[1764604724495,3.25376991,125.26,125.24,7.38896084]
[1764604725199,3.25376991,125.26,125.23,7.43954755]
[1764604725398,0.05376991,125.26,125.23,10.75954755]
[1764604725604,0.05376991,125.26,125.24,7.38896084]
[1764604728100,0.05376991,125.26,125.25,7.38896084]
[1764604729795,10.43996991,125.26,125.25,7.12399675]
[1764604730200,3.2,125.25,125.23,0.05058671]
[1764604730397,73.88,125.25,125.23,0.05058671]
[1764604730702,3.2,125.24,125.23,0.05058671]
[1764604732504,3.2,125.21,125.13,3.32]
[1764604732699,3.2,125.18,125.13,3.32]
[1764604733005,3.04637911,125.17,125.11,3.32]
[1764604733199,3.2,125.17,125.12,10.5141]
[1764604733393,3.2,125.17,125.09,3.32]
[1764604733602,3.2515904,125.15,125.12,0.05397732]
[1764604733801,73.88,125.14,125.12,0.05397732]
[1764604734201,70.68,125.14,125.12,0.05397732]
[1764604735003,70.68,125.14,125.12,3.37397732]
[1764604735600,73.88,125.14,125.12,0.05397732]
[1764604737922,73.9315904,125.15,125.12,0.05397732]
[1764604738609,10.3935,125.14,125.12,0.05397732]
[1764604738810,3.2,125.13,125.12,0.05397732]
[1764604739314,3.2,125.1,125.06,3.25]
[1764604739514,70.7,125.1,125.06,3.25]
[1764604740418,0.0555005,125.09,125.07,3.31092718]
[1764604741119,3.2555005,125.09,125.07,0.06092718]
[1764604743417,10.3966,125.08,125.07,0.06092718]
[1764604743820,0.0555005,125.09,125.07,0.06092718]
[1764604744013,0.0555005,125.09,125.07,3.31092718]
[1764604744322,0.0555005,125.09,125.07,0.06092718]
[1764604745117,3.2,125.08,125.07,0.06092718]
[1764604745423,73.9,125.08,125.07,0.06092718]
[1764604745820,3.2,125.05,125.01,10.4506]
[1764604746013,3.2,125.05,124.98,3.25]
[1764604746216,3.2,125.03,124.95,3.25]
[1764604746414,70.7,125.04,124.97,3.25]
[1764604746623,70.7,125.04,124.98,3.25]
[1764604747026,0.05689222,125.02,125.0,0.0602839]
[1764604747726,3.25689222,125.02,125.0,0.0602839]
[1764604748725,3.2,125.0,124.93,7.2046]
[1764604748919,80.90427465,124.99,124.93,7.2046]
[1764604749526,88.10617465,124.99,124.93,7.2046]
[1764604749724,0.05837806,124.97,124.95,0.05081191]
[1764604750523,0.05837806,124.97,124.96,3.25]
[1764604750728,70.72,125.03,124.97,3.25]
[1764604750921,73.92,125.03,124.98,7.202]
[1764604751133,3.2,125.02,124.94,3.25]
[1764604751722,0.05369783,124.99,124.97,0.05545205]
[1764604751924,0.05369783,124.99,124.97,3.30545205]
[1764604752128,3.2,125.05,124.98,3.25]
[1764604752323,3.2,125.05,124.98,10.4521]
[1764604752716,3.2,125.05,124.99,3.25]
[1764604753119,3.25069203,125.03,125.01,0.05370662]
[1764604753824,3.2,125.02,125.01,0.05370662]
[1764604756122,0.05069203,125.03,125.01,0.05370662]
[1764604756624,0.05069203,125.03,125.01,3.30370662]
[1764604756822,10.18427465,125.09,125.01,3.30370662]
[1764604757030,3.2,125.09,125.01,3.25]
[1764604757427,7.1967,125.08,125.02,7.1999]
[1764604757628,3.2,125.08,125.02,7.1999]
[1764604757827,0.05053077,125.06,125.04,0.05231725]
[1764604758026,10.44843077,125.06,125.04,0.05231725]
[1764604758332,3.2,125.05,125.04,0.05231725]
[1764604760528,10.3989,125.04,124.99,10.4516]
[1764604760722,3.2,125.03,124.96,115.3024]
[1764604761125,3.2,125.03,124.98,7.2018]
[1764604761324,7.1987,125.05,124.99,3.25]
[1764604761521,0.05192696,125.03,125.01,0.05219279]
[1764604762026,0.05192696,125.03,125.01,3.30219279]
[1764604763332,0.05192696,125.03,125.01,10.50249279]
[1764604763528,0.05192696,125.03,125.02,3.25]
[1764604766034,3.25192696,125.03,125.01,0.05219279]
[1764604766637,0.05192696,125.03,125.01,0.05219279]
[1764604767536,0.05192696,125.03,125.01,3.32219279]
[1764604768136,0.05192696,125.03,125.01,7.25279279]
[1764604768639,3.36192696,125.03,125.01,7.25279279]
[1764604768833,0.05192696,125.03,125.01,7.25279279]
[1764604769032,0.05192696,125.03,125.01,10.52279279]
[1764604769335,0.05192696,125.03,125.02,3.27]
[1764604769533,10.5066,125.09,125.03,7.1992]
[1764604770131,10.5068,125.08,125.03,10.4692]
[1764604770331,3.31,125.07,125.0,3.27]
[1764604770528,3.31,125.07,125.02,0.05071919]
[1764604770737,0.05375853,125.05,125.02,0.05071919]
[1764604771236,0.05375853,125.05,125.03,3.27]
[1764604772238,0.05375853,125.05,125.03,10.4694]
[1764604773132,0.05375853,125.05,125.04,3.27]
[1764604773337,0.05375853,125.05,125.04,10.4689]
[1764604775827,0.05375853,125.05,125.03,3.07]
[1764604777436,0.05375853,125.05,125.03,10.2692]
[1764604777831,0.05375853,125.05,125.04,3.07]
[1764604778431,3.13470671,125.05,125.04,10.2689]
[1764604778640,0.05375853,125.05,125.04,10.2689]
[1764604779042,0.05375853,125.05,125.04,3.07]
[1764604779438,3.13676273,125.05,125.04,3.07]
[1764604779941,0.05375853,125.05,125.04,3.07]
[1764604780141,5.83551662,125.07,125.04,3.07]
[1764604780438,7.1945,125.12,125.07,3.07]
[1764604780638,5.84056508,125.11,125.07,3.07]
[1764604780846,6.14600669,125.13,125.07,3.07]
[1764604781030,6.14600669,125.13,125.09,3.12316225]
[1764604781031,0.06002976,125.11,125.09,3.12316225]
[1764604782842,0.06002976,125.11,125.09,10.31906225]
[1764604784740,0.06002976,125.11,125.09,3.12316225]
[1764604785347,5.84839227,125.14,125.1,3.07]
[1764604785546,34.58579516,125.18,125.1,3.07]
[1764604785845,11.95962748,125.17,125.1,73.71]
[1764604786146,9.03766685,125.16,125.11,3.07]
[1764604786345,5.90878472,125.15,125.12,0.05693748]
[1764604786543,0.06111787,125.15,125.12,0.05693748]
[1764604786744,3.25111787,125.15,125.12,0.05693748]
[1764604787047,3.19,125.13,125.12,0.05693748]
[1764604787253,9.03335367,125.13,125.12,0.05693748]
[1764604787435,3.19,125.13,125.12,0.05693748]
[1764604787632,9.03335367,125.13,125.12,0.05693748]
[1764604789048,3.19,125.13,125.12,0.05693748]
[1764604790053,3.19,125.12,125.06,3.07]
[1764604790441,9.0280052,125.12,125.06,3.07]
[1764604791045,7.25289276,125.1,125.08,0.05062801]
[1764604791345,10.44289276,125.1,125.08,0.05062801]
[1764604792246,3.19,125.09,125.08,0.05062801]
[1764604795053,10.44289276,125.1,125.08,0.05062801]
[1764604795550,3.19,125.09,125.08,0.05062801]
[1764604796650,10.44289276,125.1,125.08,0.05062801]
[1764604796852,7.25289276,125.1,125.08,3.12062801]
[1764604797349,0.05719276,125.1,125.08,3.17062801]
[1764604800548,73.95,125.16,125.08,3.17062801]
[1764604800856,73.95,125.16,125.08,3.12]
[1764604801057,76.8921385,125.16,125.08,3.12]
[1764604801253,3.33,125.15,125.08,3.12]
[1764604801749,3.33,125.15,125.03,3.12]
[1764604801958,3.33,125.13,125.03,3.12]
[1764604802150,10.5254,125.1,125.04,7.1988]
[1764604802451,3.33,125.13,125.06,0.05980098]
[1764604802644,3.38058232,125.11,125.06,0.05980098]
[1764604802852,3.33,125.1,125.06,3.17980098]
[1764604803057,3.33,125.1,125.06,0.05980098]
[1764604803959,10.526,125.09,125.06,0.05980098]
[1764604804256,7.196,125.09,125.06,0.05980098]
[1764604805258,185.49932363,125.11,125.06,0.05980098]
[1764604805457,3.33,125.1,125.06,0.05980098]
[1764604805660,3.33,125.09,125.06,0.05980098]
[1764604805860,2.93764812,125.1,125.06,0.05980098]
[1764604805861,10.5271,125.07,125.06,0.05980098]
[1764604806663,3.33,125.07,125.06,0.05980098]
[1764604806964,0.05625987,125.08,125.06,0.05980098]
[1764604807462,0.05625987,125.08,125.06,3.17980098]
[1764604807658,0.05625987,125.08,125.06,0.05980098]
[1764604808165,0.05625987,125.08,125.07,3.12]
[1764604809857,3.38625987,125.08,125.03,3.12]
[1764604810059,3.38625987,125.08,125.01,3.12]
[1764604810357,3.33,125.06,125.01,3.12]
[1764604811068,3.38410772,125.05,125.02,0.0595584]
[1764604811272,3.33,125.03,125.02,0.0595584]
[1764604812077,10.5307,125.01,124.96,3.12]
[1764604812263,7.2007,125.01,124.96,3.12]
[1764604812464,7.1996,125.03,124.97,7.2029]
[1764604812667,9.25663291,125.04,124.97,10.3229]
[1764604812864,3.33,125.03,124.97,10.3229]
[1764604813079,0.05793855,125.01,124.99,0.0607348]
[1764604813573,3.33,125.0,124.99,0.0607348]
[1764604814080,9.24965107,125.0,124.99,0.0607348]
[1764604814374,3.33,124.98,124.89,3.12]
[1764604814677,7.2036,124.96,124.91,3.12]
[1764604814873,10.5336,124.96,124.91,3.12]
[1764604815272,0.05580631,124.95,124.92,0.05979156]
[1764604815478,0.05580631,124.95,124.92,3.17979156]
[1764604815873,0.05580631,124.95,124.92,0.05979156]
[1764604816270,3.38580631,124.95,124.92,0.05979156]
[1764604816465,3.33,124.94,124.92,0.05979156]
[1764604816875,70.56,124.93,124.92,0.05979156]
[1764604817178,73.89,124.93,124.92,0.05979156]
[1764604818080,7.2065,124.91,124.85,3.12]
[1764604818286,3.33,124.91,124.85,3.12]
[1764604818582,3.33,124.9,124.82,3.12]
[1764604818786,73.89,124.93,124.84,3.12]
[1764604818985,73.89,124.93,124.85,3.12]
[1764604819171,0.0606217,124.9,124.88,0.05545159]
[1764604819786,0.0606217,124.9,124.89,3.12]
[1764604820586,0.0606217,124.9,124.88,10.38335159]
[1764604820889,0.0606217,124.9,124.89,3.12]
[1764604821091,70.56,124.93,124.9,3.12]
[1764604821390,3.33,124.96,124.89,7.207]
[1764604822074,3.39138236,124.94,124.91,0.05127731]
[1764604822272,0.00138236,124.94,124.91,3.17127731]
[1764604822574,70.58,125.0,124.94,3.12]
[1764604822786,70.58,125.0,124.95,3.12]
[1764604823180,70.58,125.0,124.97,3.12]
[1764604823684,0.05205825,125.0,124.97,3.18017352]
[1764604823881,0.05205825,125.0,124.97,0.06017352]
[1764604824087,3.38205825,125.0,124.97,0.06017352]
[1764604824481,0.05205825,125.0,124.97,3.18017352]
[1764604825582,0.05205825,125.0,124.98,3.12]
[1764604826382,0.05205825,125.0,124.98,10.3219]
[1764604826583,0.05205825,125.0,124.99,3.12]
[1764604827883,70.58,125.04,125.01,3.08]
[1764604828091,3.14,125.03,124.97,115.3807]
[1764604828792,0.05486979,125.01,124.99,3.39803447]
[1764604828983,0.05486979,125.01,124.99,0.05803447]
[1764604829177,0.05486979,125.01,124.99,3.39803447]
[1764604829378,70.58,125.04,124.99,3.39803447]
[1764604829583,3.14,125.07,124.99,3.39803447]
[1764604829786,10.3378,125.06,125.02,3.34]
[1764604830291,10.3384,125.05,124.99,7.2013]
[1764604830592,0.05749937,125.03,125.01,3.39678149]
[1764604830787,0.06115228,125.03,125.01,3.39678149]
[1764604830988,0.06115228,125.03,125.01,10.59728149]
[1764604831186,0.06115228,125.03,125.02,3.34]
[1764604831684,0.06115228,125.03,125.01,7.25728149]
[1764604831685,0.06115228,125.03,125.01,0.05678149]
[1764604832285,0.06115228,125.03,125.01,3.39678149]
[1764604833488,3.20115228,125.03,125.01,0.05678149]
[1764604833678,0.06115228,125.03,125.01,0.05678149]
[1764604834388,0.06115228,125.03,125.01,3.39678149]
[1764604836380,0.06115228,125.03,125.02,3.34]
[1764604836585,70.56,125.09,125.02,3.34]
[1764604837192,3.14,125.11,125.02,3.34]
[1764604837390,9.12919391,125.11,125.02,3.34]
[1764604837688,0.05871592,125.08,125.05,3.39452317]
[1764604838299,0.05871592,125.08,125.07,3.34]
[1764604838893,0.05871592,125.08,125.06,10.5375]
[1764604839793,0.05871592,125.08,125.07,3.34]
[1764604839999,70.52,125.12,125.08,10.5365]
[1764604840385,73.66,125.12,125.08,10.5365]
[1764604840986,0.06040454,125.11,125.09,0.05776126]
[1764604841494,3.20040454,125.11,125.09,0.05776126]
[1764604841696,3.14,125.1,125.02,115.3387]
[1764604841897,3.14,125.1,125.02,3.34]
[1764604842098,3.14,125.1,125.04,7.1986]
[1764604842496,7.1968,125.08,125.02,3.34]
[1764604842686,3.2012341,125.06,125.04,0.05274466]
[1764604842892,0.0612341,125.06,125.04,0.05274466]
[1764604843795,3.2012341,125.06,125.04,0.05274466]
[1764604844301,0.0612341,125.06,125.04,0.05274466]
[1764604846298,73.66,125.12,125.04,3.39274466]
[1764604846499,3.14,125.11,125.04,3.34]
[1764604847303,0.05846981,125.09,125.06,7.25871582]
[1764604847503,0.05846981,125.09,125.06,3.40101582]
[1764604847900,10.3334,125.14,125.09,3.34]
[1764604848296,3.14,125.14,125.09,3.34]
[1764604848495,73.62,125.17,125.09,3.34]
[1764604848899,0.05448484,125.14,125.12,3.34]
[1764604849101,70.48,125.17,125.12,3.39667472]
[1764604849297,24.51535507,125.18,125.12,3.39667472]
[1764604849604,3.14,125.2,125.12,3.39667472]
[1764604849803,3.14,125.2,125.12,3.34]
[1764604850003,3.14,125.2,125.15,3.34]
[1764604850206,0.05139558,125.19,125.16,0.05271505]
[1764604851094,0.05139558,125.19,125.16,3.39271505]
[1764604852509,0.05139558,125.19,125.18,3.34]
[1764604853205,3.14,125.26,125.19,10.53]
[1764604853401,32.62098193,125.26,125.19,10.53]
[1764604854313,0.05056263,125.24,125.21,0.05717602]
[1764604854910,0.05056263,125.24,125.22,3.34]
[1764604855507,3.19056263,125.24,125.21,0.05717602]
[1764604855902,3.14,125.23,125.21,0.05717602]
[1764604856502,0.05056263,125.24,125.21,3.39717602]
[1764604856702,70.44,125.27,125.21,3.39717602]
[1764604857214,70.44,125.27,125.21,10.58607602]
[1764604857711,0.06040481,125.25,125.22,3.05]
[1764604858610,3.35040481,125.25,125.21,0.05717602]
[1764604858811,3.29,125.22,125.21,0.05717602]
[1764604859014,3.29,125.22,125.16,3.05]
[1764604860007,0.05854876,125.2,125.18,0.05703305]
[1764604860614,0.05854876,125.2,125.18,3.10703305]
[1764604861115,7.1877,125.24,125.18,3.10703305]
[1764604861319,135.22902094,125.26,125.18,3.10703305]
[1764604861320,3.29,125.22,125.18,0.05703305]
[1764604861514,3.29,125.22,125.18,3.05]
[1764604861709,3.29,125.22,125.17,7.1913]
[1764604862112,3.34612032,125.21,125.18,0.05424887]
[1764604862816,3.34612032,125.21,125.18,3.10424887]
[1764604862817,0.05612032,125.21,125.18,3.10424887]
[1764604863022,111.7657,125.29,125.2,3.05]
[1764604863322,3.29,125.28,125.2,3.05]
[1764604864120,3.29,125.28,125.24,3.05]
[1764604864121,7.1852,125.28,125.24,3.05]
[1764604864323,70.36,125.31,125.24,3.05]
[1764604864619,73.65,125.31,125.26,3.11014683]
[1764604864819,97.27221689,125.31,125.26,3.11014683]
[1764604865521,104.45581689,125.31,125.26,3.11014683]
[1764604866022,3.29,125.3,125.26,0.06014683]
[1764604867019,3.29,125.3,125.26,3.11014683]
[1764604867225,73.65,125.31,125.26,10.29604683]
[1764604867515,70.36,125.31,125.27,3.05]
[1764604868413,70.36,125.31,125.27,10.2353]
[1764604868714,70.36,125.31,125.28,3.05]
[1764604869020,86.64364337,125.37,125.31,7.1833]
[1764604869226,3.29,125.35,125.25,111.7909]
[1764604869422,3.29,125.29,125.23,111.8047]
[1764604869612,3.29,125.27,125.2,3.05]
[1764604870014,3.29,125.26,125.2,7.1893]
[1764604870218,3.29,125.22,125.11,120.89116118]
[1764604870419,3.29,125.2,125.13,3.05]
[1764604870620,0.06119586,125.18,125.15,3.10820303]
[1764604870925,3.35103248,125.18,125.15,0.05820303]
[1764604872026,0.06103248,125.18,125.15,0.05820303]
[1764604872524,0.06103248,125.18,125.15,3.10820303]
[1764604872724,0.06103248,125.18,125.17,3.05]
[1764604873024,3.29,125.25,125.18,3.05]
[1764604873330,5.95404756,125.26,125.2,7.1893]
[1764604873521,70.3,125.27,125.2,7.1893]
[1764604873522,5.95404756,125.25,125.2,10.2393]
[1764604873713,9.24404756,125.26,125.18,7.1905]
[1764604873914,9.24404756,125.25,125.21,0.0551356]
[1764604874233,3.29,125.25,125.21,0.0551356]
[1764604874828,10.4773,125.25,125.21,0.0551356]
[1764604875528,3.29,125.23,125.21,0.0551356]
[1764604875730,3.29,125.25,125.21,0.0551356]
[1764604875928,5.95014386,125.24,125.21,0.0551356]
[1764604876130,3.29,125.25,125.21,0.0551356]
[1764604877032,3.29,125.25,125.21,7.2439356]
[1764604878133,3.29,125.25,125.21,0.0551356]
[1764604878431,3.29,125.25,125.11,3.05]
[1764604878432,3.29,125.2,125.11,3.05]
[1764604878630,3.29,125.18,125.13,7.1935]
[1764604878930,3.29,125.18,125.13,3.05]
[1764604879130,3.29,125.18,125.14,7.193]
[1764604879325,70.3,125.2,125.14,3.05]
[1764604879733,70.3,125.2,125.11,111.9183]
[1764604879734,3.35144197,125.18,125.16,0.05576331]
[1764604880327,0.06144197,125.18,125.16,3.10576331]
[1764604880631,0.06144197,125.18,125.16,0.05576331]
[1764604881834,0.06144197,125.18,125.17,7.1914]
[1764604882329,0.06144197,125.18,125.16,0.05576331]
[1764604883225,0.06144197,125.18,125.16,7.24766331]
[1764604885536,3.35144197,125.18,125.16,0.05576331]
[1764604885842,0.06144197,125.18,125.16,0.05576331]
[1764604886038,3.29,125.17,125.09,3.05]
[1764604886241,5.96980313,125.16,125.09,3.05]
[1764604886428,5.97039864,125.16,125.09,3.05]
[1764604886629,7.1926,125.15,125.11,7.1947]
[1764604886834,3.29,125.14,125.11,7.1947]
[1764604887030,0.05934173,125.14,125.11,7.25114632]
[1764604887642,0.05934173,125.14,125.12,7.1941]
[1764604888638,0.05934173,125.14,125.11,0.05644632]
[1764604888838,3.23934173,125.14,125.11,0.05644632]
[1764604889246,0.05934173,125.14,125.11,3.30644632]
[1764604889745,0.05934173,125.14,125.11,10.50114632]
[1764604890238,3.23934173,125.14,125.11,0.05644632]
[1764604891543,0.05934173,125.14,125.11,0.05644632]
[1764604891742,3.23934173,125.14,125.11,0.05644632]
[1764604892040,9.16795223,125.13,125.11,0.05644632]
[1764604892241,3.18,125.13,125.11,0.05644632]
[1764604892743,10.3738,125.13,125.11,0.05644632]
[1764604892946,9.17098755,125.12,125.05,3.25]
[1764604893249,10.3761,125.09,125.03,7.199]
[1764604893452,24.38084578,125.09,125.03,3.25]
[1764604893648,70.3,125.1,125.03,3.25]
[1764604893946,0.05548125,125.08,125.06,10.4476]
[1764604894151,0.05548125,125.08,125.06,7.1976]
[1764604894446,0.05548125,125.08,125.05,0.05946733]
[1764604894642,3.23548125,125.08,125.05,0.05946733]
[1764604895041,9.15759787,125.07,125.05,0.05946733]
[1764604895242,3.18,125.07,125.05,0.05946733]
[1764604895547,9.16904862,125.07,125.05,0.05946733]
[1764604895742,3.18,125.06,125.05,0.05946733]
[1764604896847,0.05548125,125.08,125.05,7.25756733]
[1764604897049,0.05548125,125.08,125.05,10.50756733]
[1764604897246,0.05548125,125.08,125.05,7.25756733]
[1764604897551,0.05548125,125.08,125.05,0.05946733]
[1764604897950,0.05548125,125.08,125.05,3.30946733]
[1764604898251,0.05548125,125.08,125.05,7.25766733]
[1764604898453,3.23548125,125.08,125.05,0.05946733]
[1764604898957,3.18,125.06,125.05,0.05946733]
[1764604899248,3.18,125.06,124.99,3.25]
[1764604899550,10.378,125.06,124.99,3.25]
[1764604900145,3.24113064,125.04,125.01,0.05568007]
[1764604900445,3.24113064,125.04,125.01,7.25618007]
[1764604901346,0.06113064,125.04,125.01,7.25618007]
[1764604901545,3.24113064,125.04,125.01,7.25618007]
[1764604902339,3.24113064,125.04,125.01,0.05568007]
[1764604903354,7.1996,125.03,125.01,0.05568007]
[1764604903651,10.3796,125.03,125.01,0.05568007]
[1764604904353,3.18,125.02,125.01,0.05568007]
[1764604905652,3.18,125.01,124.96,7.203]
[1764604906054,3.18,125.01,124.93,115.3279]
[1764604906443,70.32,125.0,124.93,115.3279]
[1764604906647,0.06097536,124.98,124.95,0.05370155]
[1764604906852,3.24097536,124.98,124.95,0.05370155]
[1764604907450,3.24097536,124.98,124.95,7.25760155]
[1764604908252,0.06097536,124.98,124.95,7.25760155]
[1764604908856,3.24097536,124.98,124.95,0.05370155]
[1764604910066,10.44337536,124.98,124.95,0.05370155]
[1764604910267,3.18,124.97,124.95,0.05370155]
[1764604910864,0.06097536,124.98,124.95,0.05370155]
[1764604911169,3.24097536,124.98,124.95,0.05370155]
[1764604912168,10.44337536,124.98,124.95,0.05370155]
[1764604913066,0.06097536,124.98,124.95,3.30370155]
[1764604913663,0.06097536,124.98,124.97,3.25]
[1764604913868,3.18,125.04,124.98,3.25]
[1764604914265,3.18,125.04,125.0,7.2011]
[1764604914768,0.05882115,125.03,125.01,0.06102093]
[1764604914968,0.05882115,125.03,125.01,7.26152093]
[1764604915368,0.05882115,125.03,125.02,3.25]
[1764604915970,24.20484528,125.09,125.05,3.25]
[1764604916169,3.18,125.09,125.04,7.1987]
[1764604916370,3.18,125.08,125.04,7.1987]
[1764604916570,3.18,125.08,125.04,10.4487]
[1764604916769,73.52,125.1,125.05,10.4482]
[1764604916966,0.05447946,125.09,125.06,0.05966346]
[1764604917171,0.05447946,125.09,125.06,3.22966346]
[1764604917465,3.18447946,125.09,125.06,0.05966346]
[1764604917664,3.18447946,125.09,125.06,3.22966346]
[1764604917665,0.05447946,125.09,125.06,3.22966346]
[1764604918468,0.05447946,125.09,125.07,3.17]
[1764604919864,3.18447946,125.09,125.06,0.05966346]
[1764604920463,0.05447946,125.09,125.06,3.22966346]
[1764604920663,3.18447946,125.09,125.06,0.05966346]
[1764604921067,3.13,125.08,125.06,0.05966346]
[1764604921274,3.13,125.07,124.99,112.0196]
[1764604921671,3.13,125.07,124.99,115.1896]
[1764604921969,5.93285896,125.08,125.02,3.17]
[1764604922170,5.93285896,125.08,124.98,112.0291]
[1764604922171,115.0997,125.06,124.96,112.0491]
[1764604922377,3.18612236,125.02,125.0,0.058469]
[1764604922574,0.05612236,125.02,125.0,0.058469]
[1764604923767,3.18612236,125.02,125.0,0.058469]